bitfinex/quotes_BTCUSD_20251114
["timestamp","ask_amount","ask_price","bid_price","bid_amount"]
[1763082856407,0.00013798,98970.0,98969.0,0.09448365]
[1763082857179,0.00013798,98970.0,98969.0,0.09948365]
[1763082857756,0.00013798,98970.0,98969.0,0.09648365]
[1763082857963,0.00013798,98970.0,98969.0,0.09448365]
[1763082858172,0.00113798,98970.0,98969.0,0.09448365]
[1763082858368,0.55464557,99020.0,98969.0,0.09448365]
[1763082858369,0.323,99003.0,98980.0,0.01010305]
[1763082858578,0.32313813,99003.0,99002.0,0.09816915]
[1763082858813,0.32313813,99003.0,99002.0,0.11556915]
[1763082859767,0.32313813,99003.0,99002.0,0.11756915]
[1763082860174,0.32313813,99003.0,99002.0,0.0194]
[1763082860424,0.00013813,99003.0,99002.0,0.22141612]
[1763082860622,0.00013813,99003.0,99002.0,0.24355773]
[1763082861177,0.00013813,99003.0,99002.0,0.0184]
[1763082861385,0.22737221,99003.0,99002.0,0.001]
[1763082861587,0.55037221,99003.0,99002.0,0.001]
[1763082861960,0.02535813,99003.0,98982.0,0.0174]
[1763082862159,0.323,98997.0,98996.0,0.09816915]
[1763082862300,0.323,98991.0,98986.0,0.20204844]
[1763082862711,0.00013813,99003.0,98995.0,0.02432]
[1763082862909,0.00013813,99003.0,98987.0,0.03531]
[1763082862910,0.00013813,99003.0,99002.0,0.14288915]
[1763082863177,0.00013813,99003.0,99002.0,0.13988915]
[1763082864289,0.00013813,99003.0,99002.0,0.14088915]
[1763082864434,0.00013813,99003.0,99002.0,0.31758527]
[1763082864632,0.00013813,99003.0,99002.0,0.38984834]
[1763082864833,0.00013813,99003.0,99002.0,0.11556915]
[1763082865857,0.00013813,99003.0,99002.0,0.11656915]
[1763082866060,0.00013813,99003.0,99002.0,0.11556915]
[1763082866405,0.00013813,99003.0,99002.0,0.11756915]
[1763082867569,0.00513813,99003.0,99002.0,0.15898789]
[1763082867765,0.0002,99030.0,99029.0,0.30013019]
[1763082867968,0.0002,99030.0,99029.0,0.11537915]
[1763082869200,0.0002,99030.0,99029.0,0.11737915]
[1763082870025,0.0002,99030.0,99029.0,0.11937915]
[1763082871921,0.0002,99030.0,99029.0,0.11537915]
[1763082872125,0.0002,99030.0,99029.0,0.16101663]
[1763082872707,0.0002,99030.0,99029.0,0.15801663]
[1763082872898,0.0042,99030.0,99029.0,0.15801663]
[1763082873029,0.0002,99030.0,99029.0,0.15801663]
[1763082873224,0.00074451,99030.0,99029.0,0.16001663]
[1763082873422,0.00474451,99030.0,99029.0,0.16001663]
[1763082873705,0.00474451,99030.0,99029.0,0.15801663]
[1763082874141,0.00674451,99030.0,99029.0,0.15801663]
[1763082874355,0.0002,99040.0,99039.0,0.20194064]
[1763082874589,0.0002,99050.0,99039.0,0.20194064]
[1763082874590,0.0002,99050.0,99049.0,0.20192026]
[1763082874787,0.00033813,99050.0,99049.0,0.32365941]
[1763082875018,0.00033813,99050.0,99049.0,0.30008941]
[1763082876193,0.00033813,99050.0,99049.0,0.30308941]
[1763082876408,0.00033813,99050.0,99049.0,0.10116915]
[1763082877044,0.00033813,99050.0,99049.0,0.17318735]
[1763082877274,0.00033813,99050.0,99049.0,0.17618735]
[1763082877715,0.00033813,99050.0,99049.0,0.10416915]
[1763082877966,0.00033813,99050.0,99049.0,0.10116915]
[1763082878180,0.32333813,99050.0,99049.0,0.10116915]
[1763082878663,0.34852813,99050.0,99049.0,0.006]
[1763082878885,0.34852813,99050.0,99049.0,0.003]
[1763082879098,0.32333813,99050.0,99049.0,0.006]
[1763082879453,0.32333813,99050.0,99049.0,0.003]
[1763082879690,0.00033813,99050.0,99049.0,0.003]
[1763082879876,0.00033813,99050.0,99049.0,0.002]
[1763082880248,0.323,99048.0,99047.0,0.03634]
[1763082881110,0.323,99048.0,99047.0,0.13450915]
[1763082881364,0.20225857,99050.0,99047.0,0.002]
[1763082881683,0.34819,99048.0,99047.0,0.004]
[1763082881880,0.34819,99048.0,99047.0,0.002]
[1763082882306,0.34819,99048.0,99047.0,0.005]
[1763082882504,0.34819,99048.0,99047.0,0.003]
[1763082882705,0.524959,99030.0,99029.0,0.01721]
[1763082883552,0.20197531,99022.0,99021.0,0.09816915]
[1763082883756,0.44096104,99031.0,99021.0,0.09816915]
[1763082883970,0.01737,99045.0,99037.0,0.00942]
[1763082884170,0.20194167,99039.0,99037.0,0.00942]
[1763082884577,0.201959,99030.0,99029.0,0.005]
[1763082884779,0.20145719,99031.0,99029.0,0.002]
[1763082885234,0.20145719,99031.0,99030.0,0.09816915]
[1763082886151,0.20198143,99019.0,99018.0,0.0174]
[1763082886350,0.63038007,99031.0,99009.0,0.13450915]
[1763082886351,0.323,99028.0,99011.0,0.01921]
[1763082886551,0.20199571,99012.0,99011.0,0.01921]
[1763082886767,0.20199979,99010.0,99009.0,0.09816915]
[1763082886977,0.323,99020.0,99009.0,0.09816915]
[1763082887176,0.323,99020.0,99010.0,0.20199979]
[1763082887322,0.323,99020.0,99011.0,0.2019975]
[1763082887522,0.323,99020.0,99019.0,0.03118]
[1763082887724,0.323,99020.0,99002.0,0.0174]
[1763082887725,0.34819,99020.0,99002.0,0.0174]
[1763082887953,0.323,99003.0,98988.0,0.01921]
[1763082888122,0.20204025,98991.0,98988.0,0.01934813]
[1763082888325,0.20204265,98989.0,98988.0,0.01934813]
[1763082889002,0.202035,98993.0,98988.0,0.05568813]
[1763082889205,0.20204099,98990.0,98988.0,0.00013813]
[1763082889948,0.20204099,98990.0,98988.0,0.00313813]
[1763082890140,0.323,98998.0,98988.0,0.00313813]
[1763082890346,0.2020424,98990.0,98988.0,0.00013813]
[1763082890642,0.2020424,98990.0,98988.0,0.00213813]
[1763082890803,0.323,98999.0,98988.0,0.00213813]
[1763082891006,0.45106102,99010.0,98989.0,0.05384673]
[1763082891237,0.323,99004.0,99001.0,0.09816915]
[1763082891618,0.20201408,99003.0,99001.0,0.09816915]
[1763082892216,0.20201408,99003.0,98991.0,0.20203791]
[1763082892217,0.323,98995.0,98989.0,0.03634]
[1763082892575,0.323,98995.0,98993.0,0.20203362]
[1763082892980,0.323,98995.0,98988.0,0.00013813]
[1763082893156,0.323,98995.0,98993.0,0.30020305]
[1763082893361,0.01737,99015.0,98997.0,0.02357]
[1763082893603,0.323,99009.0,99002.0,0.02936]
[1763082893814,0.323,99009.0,99003.0,0.20201408]
[1763082893988,0.20199366,99014.0,99008.0,0.20200371]
[1763082894194,0.20199645,99012.0,99007.0,0.20200479]
[1763082894404,0.323,99011.0,99009.0,0.20200121]
[1763082894619,0.323,99011.0,99010.0,0.09816915]
[1763082894889,0.20197327,99023.0,99013.0,0.20199321]
[1763082895088,0.20199275,99014.0,99010.0,0.09816915]
[1763082895286,0.01737,99024.0,99010.0,0.09816915]
[1763082895538,0.20199603,99012.0,99010.0,0.09816915]
[1763082896880,0.20199603,99012.0,99010.0,0.10116915]
[1763082897087,0.20199603,99012.0,99010.0,0.09916915]
[1763082897339,0.20199603,99012.0,99010.0,0.10116915]
[1763082897808,0.2019962,99012.0,99010.0,0.10116915]
[1763082898761,0.75400003,99030.0,99010.0,0.10116915]
[1763082898955,0.01009795,99030.0,99022.0,0.02357]
[1763082899163,0.323,99032.0,99031.0,0.01605]
[1763082899367,0.52495492,99032.0,99031.0,0.01605]
[1763082899908,0.323,99032.0,99031.0,0.01605]
[1763082900125,0.00023332,99039.0,99031.0,0.01605]
[1763082900335,0.00037143,99039.0,99033.0,0.20195288]
[1763082900549,0.00037143,99039.0,99037.0,0.2019443]
[1763082900768,0.00037143,99039.0,99032.0,0.0359]
[1763082901218,0.00037143,99039.0,99036.0,0.20194458]
[1763082901436,0.20194555,99037.0,99032.0,0.0359]
[1763082901649,0.20195084,99034.0,99031.0,0.001]
[1763082901863,0.54799492,99032.0,99031.0,0.001]
[1763082902075,0.54799492,99032.0,98993.0,0.09816915]
[1763082902076,0.20203244,98994.0,98993.0,0.09816915]
[1763082902776,0.54807244,98994.0,98993.0,0.09816915]
[1763082902990,0.20205898,98981.0,98980.0,0.00172159]
[1763082903208,0.21942898,98981.0,98980.0,0.00185972]
[1763082903427,0.56546898,98981.0,98980.0,0.00185972]
[1763082903901,0.66395234,98981.0,98980.0,0.00185972]
[1763082904157,0.01010407,98970.0,98947.0,0.09816915]
[1763082904376,0.323,98956.0,98947.0,0.09862995]
[1763082904592,0.20211207,98955.0,98948.0,0.20212497]
[1763082904811,0.323,98956.0,98949.0,0.20212264]
[1763082905243,0.323,98956.0,98947.0,0.09862995]
[1763082905490,0.45106511,98970.0,98947.0,0.09862995]
[1763082905491,0.45106511,98970.0,98950.0,0.20212157]
[1763082905738,0.323,98956.0,98947.0,0.09862995]
[1763082905938,0.323,98956.0,98951.0,0.20211939]
[1763082906148,0.20211598,98954.0,98947.0,0.09862995]
[1763082906355,0.20211207,98955.0,98949.0,0.002]
[1763082906617,0.20211207,98955.0,98949.0,0.20412298]
[1763082906840,0.20210456,98959.0,98949.0,0.20412298]
[1763082906841,0.20212173,98951.0,98949.0,0.002]
[1763082907062,0.20211411,98954.0,98949.0,0.002]
[1763082907287,0.20211769,98953.0,98949.0,0.002]
[1763082907497,0.323,98968.0,98949.0,0.003]
[1763082907742,0.20212636,98948.0,98947.0,0.09862995]
[1763082908171,0.01541,98949.0,98947.0,0.09862995]
[1763082908371,0.20212215,98951.0,98947.0,0.09862995]
[1763082908575,0.20211734,98953.0,98949.0,0.002]
[1763082908780,0.323,98955.0,98949.0,0.002]
[1763082909007,0.323,98955.0,98950.0,0.03598]
[1763082909212,0.20211759,98953.0,98950.0,0.03598]
[1763082909413,0.323,98955.0,98950.0,0.03598]
[1763082909634,0.323,98955.0,98953.0,0.20211508]
[1763082909832,0.2021009,98961.0,98956.0,0.20210802]
[1763082910019,0.20211207,98955.0,98954.0,0.00067483]
[1763082910449,0.26514419,98955.0,98954.0,0.00067483]
[1763082911525,0.22472207,98955.0,98954.0,0.00067483]
[1763082911940,0.22472207,98955.0,98954.0,0.00167483]
[1763082912346,0.22472207,98955.0,98954.0,0.00367483]
[1763082912485,0.22472207,98955.0,98954.0,0.00267483]
[1763082912688,0.22472207,98955.0,98954.0,0.00067483]
[1763082912905,0.32145646,98955.0,98954.0,0.00067483]
[1763082913107,0.32145646,98955.0,98954.0,0.00367483]
[1763082915290,0.22472207,98955.0,98954.0,0.00367483]
[1763082916571,0.33841,98956.0,98954.0,0.00367483]
[1763082916572,0.323,98956.0,98954.0,0.00367483]
[1763082916824,0.20210915,98957.0,98954.0,0.003]
[1763082916983,0.20211207,98955.0,98954.0,0.003]
[1763082917190,0.323,98956.0,98954.0,0.003]
[1763082917191,0.52511086,98956.0,98954.0,0.003]
[1763082917394,0.20211076,98956.0,98954.0,0.002]
[1763082917550,0.20210656,98958.0,98954.0,0.002]
[1763082917752,0.01010407,98970.0,98954.0,0.20611207]
[1763082917973,0.2020906,98966.0,98963.0,0.09816915]
[1763082918332,0.323,98965.0,98963.0,0.09816915]
[1763082918533,0.52509287,98965.0,98963.0,0.09816915]
[1763082918853,0.2020871,98968.0,98963.0,0.09816915]
[1763082919055,0.20208348,98969.0,98964.0,0.04442]
[1763082919294,0.323,98967.0,98964.0,0.24651222]
[1763082919504,0.323,98967.0,98964.0,0.04442]
[1763082919709,0.323,98967.0,98965.0,0.20209087]
[1763082919886,0.20207464,98974.0,98964.0,0.04442]
[1763082920084,0.20207464,98974.0,98969.0,0.20208247]
[1763082920085,0.323,98973.0,98969.0,0.20208247]
[1763082920288,0.2020651,98978.0,98973.0,0.02428]
[1763082920289,0.20207047,98976.0,98973.0,0.02428]
[1763082920486,0.52507327,98974.0,98973.0,0.02428]
[1763082921161,0.20208552,98968.0,98967.0,0.03598]
[1763082921476,0.20209164,98965.0,98964.0,0.003]
[1763082921717,0.08323606,98965.0,98940.0,0.01010713]
[1763082922096,0.323,98973.0,98968.0,0.20208473]
[1763082922381,0.323,98973.0,98963.0,0.09816915]
[1763082922702,0.2020922,98965.0,98964.0,0.002]
[1763082922845,0.2020922,98965.0,98963.0,0.09816915]
[1763082923449,0.20207735,98972.0,98948.0,0.09816915]
[1763082923450,0.2020957,98964.0,98948.0,0.09816915]
[1763082923634,0.20212361,98950.0,98948.0,0.09816915]
[1763082924515,0.20212361,98950.0,98947.0,0.0004608]
[1763082924516,0.20212636,98948.0,98947.0,0.0004608]
[1763082924881,0.54773636,98948.0,98947.0,0.0004608]
[1763082925870,0.323,98948.0,98947.0,0.0004608]
[1763082926073,0.323,98948.0,98947.0,0.0034608]
[1763082926285,0.323,98948.0,98947.0,0.10162995]
[1763082926718,0.323,98948.0,98947.0,0.10462995]
[1763082927980,0.323,98948.0,98947.0,0.30675836]
[1763082928188,0.323,98948.0,98947.0,0.10462995]
[1763082928397,0.323,98948.0,98947.0,0.00731738]
[1763082929076,0.01541,98963.0,98947.0,0.20944374]
[1763082929357,0.45106511,98970.0,98947.0,0.20944374]
[1763082929358,0.323,98956.0,98947.0,0.0424408]
[1763082929583,0.20212108,98951.0,98947.0,0.0424408]
[1763082929807,0.323,98956.0,98947.0,0.0424408]
[1763082930039,0.20211643,98953.0,98949.0,0.20212405]
[1763082930266,0.45106511,98970.0,98955.0,0.02349]
[1763082930516,0.01010203,98990.0,98969.0,0.03464]
[1763082931008,0.45106307,98990.0,98969.0,0.03464]
[1763082931234,0.45106307,98990.0,98972.0,0.20207707]
[1763082931466,0.20206784,98977.0,98972.0,0.20207707]
[1763082931690,0.323,98976.0,98969.0,0.04519]
[1763082931907,0.323,98976.0,98973.0,0.20207349]
[1763082932124,0.20207055,98976.0,98971.0,0.2020781]
[1763082932353,0.04341874,99009.0,98977.0,0.20206617]
[1763082932597,0.20205898,98981.0,98980.0,0.09816915]
[1763082933115,0.52505898,98981.0,98980.0,0.09816915]
[1763082933526,0.52515196,98981.0,98980.0,0.09816915]
[1763082933730,0.5250651,98978.0,98977.0,0.001]
[1763082933980,0.5487651,98978.0,98969.0,0.002]
[1763082934235,0.20212898,98947.0,98942.0,0.03404]
[1763082934489,0.20212898,98947.0,98931.0,0.20215909]
[1763082934736,0.01576,98946.0,98932.0,0.03404]
[1763082935244,0.01576,98946.0,98945.0,0.09907766]
[1763082935497,9.292e-05,98946.0,98945.0,0.09907766]
[1763082935992,0.32309292,98946.0,98945.0,0.00390851]
[1763082936249,0.34679292,98946.0,98945.0,0.00390851]
[1763082936717,0.44527628,98946.0,98945.0,0.00690851]
[1763082936967,0.44527628,98946.0,98945.0,0.00390851]
[1763082936968,0.34679292,98946.0,98945.0,0.00390851]
[1763082937796,0.34679292,98946.0,98945.0,0.00590851]
[1763082938772,0.34679292,98946.0,98945.0,0.00090851]
[1763082938985,0.34679292,98946.0,98945.0,0.00490851]
[1763082939469,0.34679292,98946.0,98945.0,0.00290851]
[1763082939687,0.44527628,98946.0,98945.0,0.00290851]
[1763082939882,0.44527628,98946.0,98945.0,0.00390851]
[1763082940717,0.34679292,98946.0,98945.0,0.00390851]
[1763082945497,0.0237,98946.0,98945.0,0.00390851]
[1763082947394,0.323,98946.0,98945.0,0.00390851]
[1763082947593,0.323,98946.0,98945.0,0.0034391]
[1763082948232,0.3467,98946.0,98945.0,0.0034391]
[1763082948618,0.323,98946.0,98945.0,0.0034391]
[1763082948826,0.56586378,98970.0,98945.0,0.0116791]
[1763082948983,0.52512937,98947.0,98945.0,0.0117008]
[1763082949670,0.01626,98956.0,98945.0,0.0117008]
[1763082949671,0.20212188,98951.0,98945.0,0.0107008]
[1763082949798,0.20212958,98947.0,98945.0,0.0087008]
[1763082950003,0.20212958,98947.0,98945.0,0.0107008]
[1763082950650,0.20212958,98947.0,98945.0,0.0024608]
[1763082950798,0.20212958,98947.0,98945.0,0.0004608]
[1763082951203,0.20212958,98947.0,98945.0,0.0024608]
[1763082951407,0.28460613,98947.0,98945.0,0.0024608]
[1763082951614,0.3467,98946.0,98945.0,0.0044608]
[1763082952485,0.3467,98946.0,98945.0,0.0024608]
[1763082952688,0.3467,98946.0,98945.0,0.0044608]
[1763082952819,0.3467,98946.0,98945.0,0.0024608]
[1763082953022,0.44518336,98946.0,98945.0,0.0044608]
[1763082953426,0.44518336,98946.0,98945.0,0.0024608]
[1763082953660,0.44518336,98946.0,98945.0,0.0044608]
[1763082953856,0.3467,98946.0,98945.0,0.0024608]
[1763082954174,0.3467,98946.0,98945.0,0.0034608]
[1763082959459,0.3467,98946.0,98945.0,0.0038999]
[1763082960682,0.323,98946.0,98945.0,0.0038999]
[1763082960879,0.34535,98946.0,98945.0,0.0038999]
[1763082961088,0.323,98946.0,98945.0,0.0038999]
[1763082961495,0.34535,98946.0,98945.0,0.0038999]
[1763082964558,0.323,98946.0,98945.0,0.0038999]
[1763082965388,0.34535,98946.0,98945.0,0.0038999]
[1763082965783,0.323,98946.0,98945.0,0.0038999]
[1763082965994,0.01626,98954.0,98945.0,0.0193799]
[1763082966202,0.323,98946.0,98945.0,0.0179408]
[1763082966415,0.02156583,98955.0,98945.0,0.0179408]
[1763082966416,0.02691343,98965.0,98954.0,0.0236]
[1763082966635,0.20209573,98963.0,98961.0,0.00886]
[1763082966852,0.24238806,98962.0,98961.0,0.00886]
[1763082967027,0.0187223,98962.0,98949.0,0.09816915]
[1763082967255,0.0187223,98961.0,98958.0,0.20210371]
[1763082967460,0.0187223,98960.0,98959.0,0.2021024]
[1763082967621,0.0187223,98960.0,98951.0,0.20212024]
[1763082967622,0.0187223,98960.0,98955.0,0.20211088]
[1763082967825,0.323,98972.0,98959.0,0.03998]
[1763082968030,0.52508756,98967.0,98966.0,0.09816915]
[1763082968227,0.56536181,98967.0,98966.0,0.09816915]
[1763082968432,0.56536186,98967.0,98966.0,0.09816915]
[1763082968632,0.54380589,98967.0,98966.0,0.09816915]
[1763082968839,0.323,98966.0,98961.0,0.002]
[1763082969115,0.54381424,98965.0,98964.0,0.09816915]
[1763082970584,0.54381424,98965.0,98964.0,0.002]
[1763082970792,0.68384294,98965.0,98964.0,0.002]
[1763082971038,0.73661458,98965.0,98964.0,0.002]
[1763082971540,0.64181571,98965.0,98964.0,0.002]
[1763082971757,0.64181571,98965.0,98964.0,0.004]
[1763082972049,0.57471697,98965.0,98964.0,0.002]
[1763082972248,0.57471697,98965.0,98953.0,0.0002314]
[1763082972249,0.20211411,98954.0,98953.0,0.0002314]
[1763082972456,0.52511411,98954.0,98953.0,0.0002314]
[1763082972654,0.323,98954.0,98953.0,0.0002314]
[1763082972861,0.20209551,98964.0,98953.0,0.0002314]
[1763082973071,0.323,98962.0,98959.0,0.20210236]
[1763082973273,0.323,98962.0,98958.0,0.20210573]
[1763082973471,0.323,98962.0,98954.0,0.03377]
[1763082973672,0.202107,98958.0,98954.0,0.23588349]
[1763082973805,0.20211207,98955.0,98954.0,0.03377]
[1763082974004,0.323,98973.0,98953.0,0.0022314]
[1763082974297,0.20211273,98955.0,98953.0,0.0022314]
[1763082974476,0.323,98962.0,98954.0,0.03377]
[1763082974734,0.01619,98975.0,98954.0,0.03377]
[1763082974949,0.52509369,98964.0,98963.0,0.02308]
[1763082976111,0.52509369,98964.0,98963.0,0.02508]
[1763082976521,0.52509369,98964.0,98963.0,0.02708]
[1763082976719,0.64120109,98964.0,98963.0,0.004]
[1763082976967,0.54827369,98964.0,98963.0,0.004]
[1763082977212,0.52509369,98964.0,98963.0,0.004]
[1763082977396,0.20209212,98965.0,98963.0,0.03777]
[1763082977902,0.56586276,98980.0,98972.0,0.02308]
[1763082977903,0.20207471,98974.0,98972.0,0.02308]
[1763082978104,0.01010305,98980.0,98973.0,0.09816915]
[1763082978105,0.2020683,98977.0,98973.0,0.09816915]
[1763082978308,0.20207172,98975.0,98973.0,0.09816915]
[1763082978525,0.323,98976.0,98973.0,0.30024372]
[1763082978725,0.323,98976.0,98974.0,0.03377]
[1763082979268,0.52506996,98976.0,98974.0,0.03377]
[1763082979516,0.20207327,98974.0,98973.0,0.10216915]
[1763082979734,0.20207327,98974.0,98973.0,0.10016915]
[1763082979929,0.20207327,98974.0,98973.0,0.09816915]
[1763082980254,0.20209777,98962.0,98961.0,0.01705]
[1763082980530,0.20209585,98963.0,98961.0,0.01705]
[1763082981194,0.20211411,98954.0,98953.0,0.0002314]
[1763082981878,0.22529411,98954.0,98953.0,0.0002314]
[1763082982322,0.22529411,98954.0,98953.0,0.0032314]
[1763082982664,0.22529411,98954.0,98953.0,0.0002314]
[1763082982870,0.02691343,98995.0,98953.0,0.0002314]
[1763082983185,0.20211411,98954.0,98953.0,0.0042314]
[1763082983508,0.343702,98954.0,98953.0,0.0022314]
[1763082983725,0.343702,98954.0,98953.0,0.0042314]
[1763082983921,0.24553285,98954.0,98953.0,0.0042314]
[1763082984164,0.24553285,98954.0,98953.0,0.0022314]
[1763082984574,0.24553285,98954.0,98953.0,0.0042314]
[1763082984737,0.24553285,98954.0,98953.0,0.0022314]
[1763082984929,0.56853285,98954.0,98953.0,0.0002314]
[1763082985285,0.323,98954.0,98953.0,0.0012314]
[1763082985487,0.20209473,98964.0,98962.0,0.04013]
[1763082985683,0.20209372,98965.0,98963.0,0.09816915]
[1763082985886,0.20209168,98967.0,98963.0,0.13193915]
[1763082986102,0.56586276,98980.0,98964.0,0.03377]
[1763082986103,0.20209367,98965.0,98964.0,0.03377]
[1763082986670,0.20209367,98965.0,98963.0,0.09816915]
[1763082986870,0.20209367,98965.0,98953.0,0.0012314]
[1763082986871,0.20211411,98954.0,98953.0,0.0012314]
[1763082987274,0.20453411,98954.0,98953.0,0.0012314]
[1763082987458,0.20211411,98954.0,98953.0,0.0002314]
[1763082988418,0.20211411,98954.0,98953.0,0.0052314]
[1763082988817,0.20211411,98954.0,98953.0,0.0022314]
[1763082989184,0.20211411,98954.0,98953.0,0.0032314]
[1763082990018,0.20211411,98954.0,98953.0,0.0022314]
[1763082990252,0.20211305,98955.0,98953.0,0.0022314]
[1763082990423,0.20211305,98955.0,98953.0,0.0002314]
[1763082990771,0.20211305,98955.0,98953.0,0.0022314]
[1763082990968,0.08326389,98954.0,98953.0,0.0002314]
[1763082991191,0.32542,98954.0,98953.0,0.0002314]
[1763082991403,0.323,98954.0,98953.0,0.0032314]
[1763082991843,0.323,98954.0,98953.0,0.0022314]
[1763082992160,0.323,98954.0,98953.0,0.0012314]
[1763082992493,0.323,98954.0,98953.0,0.0002314]
[1763082992930,0.323,98954.0,98953.0,0.0012314]
[1763082993478,0.323,98954.0,98953.0,0.0022314]
[1763082993896,0.42390336,98954.0,98953.0,0.0012314]
[1763082994099,0.42390336,98954.0,98953.0,0.0032314]
[1763082994309,0.4673221,98954.0,98953.0,0.0022314]
[1763082994517,0.4673221,98954.0,98953.0,0.0012314]
[1763082994719,0.4673221,98954.0,98953.0,0.0032314]
[1763082994922,0.4673221,98954.0,98953.0,0.0012314]
[1763082995132,0.36883874,98954.0,98953.0,0.0002314]
[1763082995337,0.36883874,98954.0,98953.0,0.0022314]
[1763082995338,0.36641874,98954.0,98953.0,0.0022314]
[1763082995544,0.36883874,98954.0,98953.0,0.0022314]
[1763082998046,0.323,98954.0,98953.0,0.0022314]
[1763082998904,0.42148336,98954.0,98953.0,0.0012314]
[1763082999226,0.42390336,98954.0,98953.0,0.0012314]
[1763082999609,0.62601747,98954.0,98953.0,0.0002314]
[1763082999842,2.62601747,98954.0,98920.0,0.0004]
[1763083000026,2.62601747,98954.0,98945.0,1e-08]
[1763083000027,0.57096919,98946.0,98945.0,1e-08]
[1763083000174,2.57096919,98946.0,98945.0,1e-08]
[1763083000376,0.36883874,98945.0,98944.0,1e-08]
[1763083000590,2.36888478,98945.0,98944.0,1e-08]
[1763083000789,2.46978814,98945.0,98944.0,1e-08]
[1763083002385,2.50016045,98945.0,98944.0,1e-08]
[1763083002820,0.57102027,98921.0,98920.0,1e-08]
[1763083003255,2.66918942,98921.0,98920.0,1e-08]
[1763083003388,2.70440262,98921.0,98920.0,1e-08]
[1763083004247,0.20226537,98880.0,98879.0,0.01819]
[1763083005088,0.30335372,98895.0,98870.0,0.0004]
[1763083005089,0.20227733,98875.0,98873.0,0.01819]
[1763083005302,0.323,98887.0,98873.0,0.01832798]
[1763083005539,0.20226843,98879.0,98877.0,0.09816915]
[1763083005957,0.20226455,98881.0,98877.0,0.09816915]
[1763083006167,0.323,98889.0,98873.0,0.02132798]
[1763083006391,0.20227355,98876.0,98875.0,0.09816915]
[1763083006604,0.323,98889.0,98875.0,0.09816915]
[1763083006802,0.323,98889.0,98877.0,0.002]
[1763083007011,0.323,98882.0,98876.0,0.20227273]
[1763083007223,0.323,98882.0,98880.0,0.20226362]
[1763083007430,0.01011122,98900.0,98885.0,0.02432]
[1763083007639,0.323,98888.0,98886.0,0.23809233]
[1763083007976,0.0101102,98910.0,98899.0,0.04251]
[1763083008181,0.20222347,98901.0,98899.0,0.04251]
[1763083008384,0.323,98900.0,98899.0,0.04251]
[1763083008579,0.20221676,98904.0,98899.0,0.04251]
[1763083008867,0.20222319,98901.0,98899.0,0.04367885]
[1763083009207,0.20222319,98901.0,98899.0,0.07835]
[1763083009410,0.74573943,98920.0,98899.0,0.07835]
[1763083009411,0.45257171,98930.0,98909.0,0.01819]
[1763083009616,0.20219389,98916.0,98913.0,0.09816915]
[1763083009838,0.20219389,98917.0,98913.0,0.09816915]
[1763083010024,0.20218836,98918.0,98913.0,0.09816915]
[1763083010227,0.323,98916.0,98913.0,0.09816915]
[1763083010598,0.323,98916.0,98913.0,0.09830713]
[1763083010800,0.27190115,98940.0,98922.0,0.02432]
[1763083011003,0.20216764,98928.0,98922.0,0.02432]
[1763083011206,0.323,98924.0,98923.0,0.01819]
[1763083011428,0.20214596,98939.0,98923.0,0.22036644]
[1763083011605,0.45239208,98940.0,98924.0,0.03584]
[1763083011859,0.323,98928.0,98924.0,0.23801441]
[1763083012062,0.01010713,98940.0,98939.0,0.02432]
[1763083012719,0.45256967,98950.0,98939.0,0.02432]
[1763083013019,0.20212432,98949.0,98948.0,0.01819]
[1763083013424,0.21223043,98950.0,98948.0,0.01819]
[1763083013425,0.20212284,98950.0,98948.0,0.01819]
[1763083013634,0.07501515,98980.0,98948.0,0.01819]
[1763083013635,0.02691343,98974.0,98957.0,0.02432]
[1763083013833,0.01010203,98990.0,98957.0,0.02432]
[1763083013834,0.20207939,98971.0,98970.0,0.01819]
[1763083014263,0.00046066,98971.0,98970.0,0.01819]
[1763083015008,0.00046066,98971.0,98970.0,0.05403]
[1763083015177,0.00046066,98971.0,98970.0,0.01819]
[1763083015549,0.00046066,98971.0,98970.0,0.02019]
[1763083016077,0.00046066,98971.0,98970.0,0.02119]
[1763083016492,0.00046066,98971.0,98970.0,0.02019]
[1763083016889,0.00046066,98971.0,98970.0,0.02219]
[1763083017299,0.00046066,98971.0,98970.0,0.02019]
[1763083017664,0.00046066,98971.0,98970.0,0.02319]
[1763083017883,0.00046066,98971.0,98970.0,0.05066788]
[1763083018062,0.00046066,98971.0,98970.0,0.12876032]
[1763083018268,0.00046066,98971.0,98970.0,0.13176032]
[1763083018586,0.00046066,98971.0,98970.0,0.12876032]
[1763083019124,0.00046066,98971.0,98970.0,0.12576032]
[1763083019331,0.00046066,98971.0,98970.0,0.12776032]
[1763083019453,0.00046066,98971.0,98970.0,0.0986991]
[1763083019658,0.00046066,98971.0,98970.0,0.13074365]
[1763083019904,0.00046066,98971.0,98970.0,0.12874365]
[1763083020163,0.00046066,98971.0,98970.0,0.13174365]
[1763083020557,0.00046066,98971.0,98970.0,0.02419]
[1763083020763,0.20254005,98971.0,98970.0,0.02419]
[1763083021717,0.20254005,98971.0,98970.0,0.01819]
[1763083021923,0.00046066,98971.0,98970.0,0.01819]
[1763083022055,0.00046066,98971.0,98970.0,0.02419]
[1763083022616,0.00046066,98971.0,98970.0,0.02119]
[1763083023028,0.00046066,98971.0,98970.0,0.03878092]
[1763083023264,0.00046066,98971.0,98970.0,0.02319]
[1763083025005,0.00046066,98971.0,98970.0,0.02119]
[1763083025210,0.00046066,98971.0,98970.0,0.02319]
[1763083025430,0.00046066,98971.0,98970.0,0.05492622]
[1763083025635,0.00046066,98971.0,98970.0,0.02319]
[1763083025840,0.00046066,98971.0,98970.0,0.05474]
[1763083026054,0.00046066,98971.0,98970.0,0.05674]
[1763083026266,0.02071454,98971.0,98970.0,0.02019]
[1763083026466,0.00046066,98971.0,98970.0,0.002]
[1763083026677,0.00046066,98971.0,98957.0,0.01819]
[1763083026678,0.20208969,98966.0,98965.0,0.03655]
[1763083026884,0.2020896,98966.0,98965.0,0.03655]
[1763083027780,0.00046066,98971.0,98965.0,0.03655]
[1763083027978,0.20203279,98967.0,98966.0,0.12347915]
[1763083028610,0.00046066,98971.0,98966.0,0.09816915]
[1763083028811,0.00046066,98971.0,98967.0,0.20208756]
[1763083028988,0.00046066,98971.0,98968.0,0.20208443]
[1763083029214,0.20208623,98968.0,98967.0,0.03488]
[1763083029636,0.00046066,98971.0,98969.0,0.20208279]
[1763083029951,0.00046066,98971.0,98970.0,0.03488]